bitfinex/quotes_ETHUSD_20260125
["timestamp","ask_amount","ask_price","bid_price","bid_amount"]
[1769367067793,0.2335703,2842.7,2840.1,3.62583787]
[1769367067794,30.0,2842.6,2840.1,12.28613915]
[1769367067989,0.128,2842.0,2840.1,12.28613915]
[1769367068303,0.128,2842.0,2839.8,0.002]
[1769367068304,0.2335703,2841.8,2840.2,1.22881392]
[1769367068452,0.2335703,2841.6,2839.8,0.002]
[1769367068650,0.2335703,2841.4,2839.8,0.002]
[1769367068891,3.712,2842.5,2840.2,12.28613915]
[1769367069074,0.737,2842.5,2840.7,12.28613915]
[1769367069251,0.10488777,2843.0,2840.4,0.10488777]
[1769367069252,0.128,2842.3,2840.4,12.28613915]
[1769367069452,0.865,2842.3,2840.6,12.28613915]
[1769367069752,4.73094271,2843.4,2841.0,12.28613915]
[1769367069959,0.128,2843.2,2841.2,12.28613915]
[1769367070465,0.2335703,2842.9,2841.2,12.28613915]
[1769367070671,0.737,2843.3,2841.2,12.28613915]
[1769367070964,0.67479427,2843.2,2841.3,1.22861391]
[1769367071166,0.67479427,2843.2,2841.3,13.51475306]
[1769367071382,0.67479427,2843.2,2841.5,12.28613915]
[1769367071383,0.865,2843.2,2841.5,12.28613915]
[1769367071781,0.001,2843.4,2841.5,13.16595428]
[1769367071997,0.001,2843.2,2841.7,12.28613915]
[1769367072477,0.001,2843.2,2841.9,12.28613915]
[1769367074371,0.001,2843.2,2841.4,12.28613915]
[1769367074607,0.001,2843.2,2841.5,1.35147531]
[1769367075110,0.001,2843.2,2841.5,13.63761446]
[1769367075912,0.001,2843.2,2841.8,12.48302674]
[1769367076501,0.001,2843.2,2842.0,12.48302674]
[1769367081178,0.001,2843.2,2842.0,13.36268516]
[1769367081401,0.001,2843.2,2842.2,12.48302674]
[1769367082014,0.001,2843.2,2842.1,1.34675729]
[1769367082185,0.001,2843.2,2841.8,12.48302674]
[1769367084216,0.001,2843.2,2842.0,0.002]
[1769367086923,0.2335703,2843.7,2842.0,0.002]
[1769367086924,10.24,2844.8,2842.6,12.48302674]
[1769367087120,11.84545046,2844.9,2842.8,12.48302674]
[1769367087441,4.72994271,2845.1,2842.7,0.10488777]
[1769367087442,1.19503382,2844.8,2843.0,12.48302674]
[1769367087594,0.128,2844.9,2843.0,12.48302674]
[1769367088194,0.128,2844.7,2843.0,12.48302674]
[1769367089026,0.2335703,2844.6,2843.0,12.48302674]
[1769367089591,0.128,2844.5,2842.9,1.25879145]
[1769367089796,0.128,2844.5,2842.1,1.7214906]
[1769367089797,13.29972284,2844.4,2842.2,13.36261969]
[1769367089993,13.29972284,2844.4,2842.2,12.48302674]
[1769367090193,0.2335703,2844.2,2842.2,12.48302674]
[1769367090913,0.2335703,2844.1,2842.2,12.48302674]
[1769367091125,12.07902076,2843.9,2842.0,0.002]
[1769367091293,0.2335703,2843.7,2842.0,0.002]
[1769367091828,0.2335703,2843.5,2842.0,12.48502674]
[1769367092203,1.11277166,2843.5,2842.0,12.48502674]
[1769367093312,1.11277166,2843.5,2842.0,0.002]
[1769367094153,1.61617048,2843.6,2842.1,11.89732367]
[1769367094351,1.61617048,2843.6,2842.2,13.08725604]
[1769367095717,1.61617048,2843.6,2842.0,0.002]
[1769367095718,0.2335703,2843.5,2842.0,0.002]
[1769367096223,12.74925211,2843.3,2842.0,0.002]
[1769367096407,12.74925211,2843.1,2841.2,11.89732367]
[1769367096609,12.74925211,2842.9,2840.8,11.89732367]
[1769367096920,0.2335703,2842.7,2840.8,12.77735257]
[1769367097120,0.2335703,2842.7,2840.8,11.89732367]
[1769367097362,0.2335703,2842.7,2840.8,11.89632465]
[1769367097650,12.74925211,2842.7,2840.5,1.23910269]
[1769367097850,12.74925211,2842.7,2840.5,1.23810367]
[1769367097851,0.2335703,2842.3,2840.5,1.23810367]
[1769367098007,1.94497255,2842.3,2840.8,0.002]
[1769367098211,0.8796003,2842.2,2840.8,0.002]
[1769367102522,0.2335703,2842.1,2840.8,11.89932367]
[1769367102752,0.737,2842.0,2841.0,11.89732367]
[1769367102915,0.2335703,2842.2,2841.0,11.89732367]
[1769367102916,0.2335703,2842.2,2841.1,0.03519762]
[1769367103120,0.737,2842.1,2841.0,11.89732367]
[1769367103391,0.737,2842.1,2840.8,0.002]
[1769367103666,0.2335703,2842.2,2840.8,0.002]
[1769367103834,0.737,2842.1,2840.8,0.002]
[1769367104042,0.2335703,2842.0,2840.8,0.002]
[1769367104419,0.2335703,2841.8,2840.8,0.002]
[1769367105674,0.87969316,2841.9,2840.8,0.002]
[1769367105675,0.737,2841.7,2840.8,0.002]
[1769367105918,0.2335703,2841.6,2840.8,0.002]
[1769367106591,1.11335939,2841.6,2840.8,0.002]
[1769367106788,0.18503594,2841.5,2840.8,0.002]
[1769367107289,0.2335703,2841.4,2840.8,0.002]
[1769367107581,0.2335703,2841.4,2840.2,11.89732367]
[1769367107945,0.2335703,2841.4,2840.1,0.002]
[1769367108550,0.87987892,2841.3,2840.1,0.002]
[1769367108875,0.2335703,2841.1,2840.1,0.002]
[1769367109539,0.737,2841.0,2840.1,0.002]
[1769367109734,3.70440301,2841.5,2840.1,11.89932367]
[1769367109735,1.1928678,2841.5,2840.1,11.89932367]
[1769367109940,0.737,2841.4,2840.1,11.89932367]
[1769367110137,0.2335703,2841.3,2840.1,11.89932367]
[1769367110339,0.2335703,2841.3,2840.2,1.19013237]
[1769367110657,1.1134759,2841.3,2840.1,11.89932367]
[1769367111239,1.1134759,2841.3,2840.1,0.002]
[1769367116783,0.2335703,2841.1,2840.1,0.002]
[1769367116976,1.11353939,2841.1,2840.1,0.002]
[1769367117656,13.6292212,2841.1,2840.0,1e-08]
[1769367117856,13.6292212,2841.1,2839.2,11.89932367]
[1769367117857,16.88367679,2840.9,2839.2,11.89932367]
[1769367118862,0.2335703,2840.7,2839.2,11.89932367]
[1769367120799,4.60156528,2840.3,2838.8,11.89732367]
[1769367120958,0.88028169,2840.0,2838.8,11.89732367]
[1769367121158,0.88028169,2840.0,2838.6,0.002]
[1769367121362,0.2335703,2839.9,2838.6,0.002]
[1769367121760,0.2335703,2839.9,2838.9,0.002]
[1769367123062,0.2335703,2840.1,2838.9,0.002]
[1769367123307,0.9705703,2840.1,2839.0,12.27484304]
[1769367123505,0.9705703,2840.1,2839.0,12.23961937]
[1769367123675,0.737,2840.1,2839.2,12.23761937]
[1769367124084,13.90076115,2841.0,2839.1,1.22416194]
[1769367124085,1.78859847,2841.0,2839.3,12.37772708]
[1769367124386,1.78859847,2841.0,2839.8,12.23761937]
[1769367124387,0.737,2841.0,2839.8,12.23761937]
[1769367124589,0.001,2841.3,2840.0,12.23761937]
[1769367124756,0.001,2841.3,2840.2,12.23761937]
[1769367126180,0.001,2841.3,2840.2,13.11783171]
[1769367126381,0.001,2841.3,2840.4,12.23761937]
[1769367127065,0.87959752,2842.3,2840.6,12.23761937]
[1769367127290,3.51773905,2842.8,2840.8,12.23761937]
[1769367127291,0.737,2842.4,2840.8,12.23761937]
[1769367127474,0.2335703,2842.3,2840.8,12.23761937]
[1769367127879,0.737,2842.4,2840.8,12.23761937]
[1769367128065,0.128,2842.8,2841.0,12.23761937]
[1769367128261,0.128,2842.6,2841.0,12.23761937]
[1769367128670,0.2335703,2842.5,2841.0,12.23761937]
[1769367129311,0.2335703,2842.2,2840.6,12.23761937]
[1769367129473,0.2335703,2842.2,2840.7,1.22376194]
[1769367130302,0.2335703,2842.2,2840.8,12.23761937]
[1769367130473,0.2335703,2842.3,2840.8,12.23761937]
[1769367130674,0.737,2842.1,2840.8,12.23761937]
[1769367132014,0.737,2842.0,2840.8,12.23761937]
[1769367132246,0.737,2842.0,2840.9,13.5837575]
[1769367133009,0.737,2842.0,2840.5,12.23761937]
[1769367133194,0.2335703,2841.9,2840.5,12.23761937]
[1769367133606,0.2335703,2841.7,2840.2,3.78]
[1769367133820,0.2335703,2841.7,2840.3,0.002]
[1769367134794,0.001,2841.8,2840.3,0.002]
[1769367135205,0.737,2841.7,2840.3,11.94856034]
[1769367135417,0.001,2841.8,2840.4,13.14141637]
[1769367135915,0.001,2841.8,2840.4,14.02157374]
[1769367136214,0.001,2841.8,2840.6,11.94656034]
[1769367137706,0.001,2841.8,2840.6,12.82665586]
[1769367137905,0.001,2841.8,2840.7,0.10488777]
[1769367138207,0.001,2841.8,2840.8,13.2397147]
[1769367138426,0.128,2843.2,2841.2,11.94656034]
[1769367138726,0.128,2843.0,2841.2,11.94656034]
[1769367138922,12.36503759,2843.0,2841.2,11.94656034]
[1769367139214,0.2335703,2842.8,2840.9,11.94656034]
[1769367139382,0.2335703,2842.8,2841.1,11.94656034]
[1769367139576,0.2335703,2842.6,2841.3,11.94656034]
[1769367139782,0.128,2843.0,2841.3,11.94656034]
[1769367139783,0.737,2842.9,2841.4,11.94656034]
[1769367140293,0.2335703,2842.8,2841.1,3.78]
[1769367140610,0.2335703,2842.6,2841.2,1.42759722]
[1769367140803,0.2335703,2842.6,2841.2,11.94656034]
[1769367141538,1.35758492,2842.7,2841.4,11.94656034]
[1769367141828,0.737,2842.9,2841.4,11.94656034]
[1769367143558,0.001,2843.4,2841.7,11.94656034]
[1769367143761,0.738,2843.4,2841.7,11.94656034]
[1769367144864,0.738,2843.4,2842.0,12.05144811]
[1769367144865,0.001,2843.4,2842.0,12.05144811]
[1769367145027,0.001,2843.4,2842.2,11.94656034]
[1769367146963,0.001,2843.1,2842.2,11.94656034]
[1769367147831,0.001,2843.1,2842.2,11.91500578]
[1769367150781,0.001,2843.1,2841.8,12.82628441]
[1769367151068,0.001,2843.1,2842.0,11.94656034]
[1769367152266,0.001,2843.1,2842.2,11.94656034]
[1769367152657,0.001,2843.1,2842.4,11.94656034]
[1769367152852,0.001,2843.1,2842.5,0.03518029]
[1769367153060,0.001,2843.1,2842.5,11.90480935]
[1769367153969,0.001,2843.4,2842.5,1.19048094]
[1769367154168,0.001,2843.4,2842.1,12.78443843]
[1769367154465,0.001,2843.4,2842.1,11.90480935]
[1769367155036,0.001,2843.4,2841.9,1.28262844]
[1769367155337,0.001,2843.4,2841.7,11.90480935]
[1769367155550,0.2335703,2843.2,2841.6,0.002]
[1769367155767,12.35893906,2843.2,2841.6,0.002]
[1769367156572,0.2335703,2843.1,2841.6,0.002]
[1769367157573,0.2335703,2843.0,2841.6,0.002]
[1769367157758,0.2335703,2842.8,2841.6,0.002]
[1769367159569,2.85228465,2842.9,2841.7,11.90480935]
[1769367159774,1.61639074,2842.9,2841.7,11.90480935]
[1769367160286,1.61639074,2842.9,2841.8,0.9]
[1769367160884,0.737,2842.9,2841.8,0.9]
[1769367161486,1.61640172,2842.9,2841.8,0.9]
[1769367161987,0.3615703,2843.1,2841.8,12.80480935]
[1769367162173,0.129,2843.2,2842.0,11.90480935]
[1769367162689,0.129,2843.2,2842.1,0.03518525]
[1769367162856,0.001,2843.2,2842.1,11.9399946]
[1769367163185,0.18371636,2843.1,2842.1,11.90480935]
[1769367163383,0.18371636,2843.1,2842.2,11.93999336]
[1769367163568,0.18371636,2843.1,2842.2,11.90480935]
[1769367165760,0.18371636,2843.1,2842.1,1.31852903]
[1769367165960,0.18371636,2843.1,2841.8,12.80480935]
[1769367166564,0.18371636,2843.1,2841.8,13.68453339]
[1769367166895,0.18371636,2843.1,2841.8,12.80480935]
[1769367167194,0.18371636,2843.1,2841.8,13.68453082]
[1769367167781,0.18371636,2843.1,2841.8,12.80480935]
[1769367168095,0.18371636,2843.1,2842.0,11.90480935]
[1769367168662,0.18371636,2843.1,2842.0,12.78446868]
[1769367169471,0.18371636,2843.1,2842.0,11.90480935]
[1769367170063,0.18371636,2843.1,2842.0,11.90680935]
[1769367178421,0.2335703,2843.0,2842.0,0.002]
[1769367178615,1.34219801,2842.9,2842.0,0.002]
[1769367179296,0.2335703,2842.8,2841.8,0.002]
[1769367180717,1.11299732,2842.8,2841.8,0.002]
[1769367181322,1.34219801,2842.9,2841.8,11.90680935]
[1769367181513,0.737,2842.8,2841.8,11.90680935]
[1769367181822,0.2079198,2842.7,2841.8,11.90680935]
[1769367181988,0.18371636,2843.1,2841.8,11.90680935]
[1769367182196,0.18371636,2843.1,2842.0,11.90480935]
[1769367182426,0.18371636,2843.1,2842.0,11.90680935]
[1769367182808,0.18371636,2843.1,2842.2,11.90480935]
[1769367184528,11.97390172,2844.6,2842.7,12.8521828]
[1769367184693,0.18367502,2844.1,2842.8,0.87941466]
[1769367184896,11.97390172,2845.0,2842.9,12.74729503]
[1769367184897,0.87876551,2844.9,2842.9,12.74729503]
[1769367185090,0.9705703,2844.8,2842.9,12.74729503]
[1769367185399,0.18364986,2844.4,2843.1,12.74729503]
[1769367185595,0.31293358,2844.7,2843.1,12.74620711]
[1769367185821,0.18365043,2844.5,2843.1,12.74620711]
[1769367186820,0.737,2844.4,2843.1,12.74620711]
[1769367187040,0.18365043,2844.5,2843.1,12.74620711]
[1769367187225,0.18365043,2844.5,2843.3,12.74729503]
[1769367187226,0.737,2844.4,2843.3,12.74729503]
[1769367188043,0.18365043,2844.5,2843.3,12.74729503]
[1769367188217,0.737,2844.9,2843.3,12.74729503]
[1769367188415,0.92062767,2844.9,2843.3,12.74729503]
[1769367189026,0.18362767,2844.9,2843.4,13.73141189]
[1769367189226,0.737,2845.4,2843.9,12.74729503]
[1769367189548,13.26273589,2845.4,2843.5,14.12043622]
[1769367189845,12.20747202,2845.2,2843.5,14.12043622]
[1769367190248,0.2335703,2845.0,2843.5,14.12043622]
[1769367190545,0.737,2844.9,2843.6,1.29317292]
[1769367190759,11.97390172,2844.7,2843.2,1.27248573]
[1769367190913,11.97390172,2845.1,2843.2,14.01978076]
[1769367191120,0.2335703,2844.7,2843.2,14.01978076]
[1769367191415,0.2335703,2844.7,2843.2,1.27248573]
[1769367191416,12.20747202,2844.7,2843.2,1.27248573]
[1769367191747,0.8787964,2844.8,2842.8,12.74729503]
[1769367191748,12.20747202,2844.5,2842.8,12.74729503]
[1769367191935,0.2335703,2844.3,2842.8,12.74729503]
[1769367192136,0.36824128,2844.4,2842.9,0.03517534]
[1769367192443,0.2335703,2844.5,2843.0,12.74729503]
[1769367192742,12.10190172,2844.7,2843.2,12.74729503]
[1769367192939,14.25534183,2844.6,2843.2,12.74729503]
[1769367193251,0.9705703,2844.5,2843.2,12.74729503]
[1769367194028,0.001,2844.0,2843.2,12.74729503]
[1769367194642,0.001,2844.0,2843.0,0.002]
[1769367196244,0.001,2844.0,2843.0,11.90102913]
[1769367196558,0.001,2844.0,2843.1,1.19010291]
[1769367197371,0.001,2844.0,2843.1,13.96845282]
[1769367197520,0.001,2844.0,2843.1,13.96844939]
[1769367198127,0.737,2844.9,2843.4,11.89902913]
[1769367199240,12.73777008,2845.0,2843.4,11.89902913]
[1769367199447,0.737,2844.8,2843.5,13.08893204]
[1769367199647,0.737,2844.7,2843.5,13.08893204]
[1769367199856,1.27377701,2844.9,2843.5,13.08893204]
[1769367200055,11.85903479,2845.2,2843.5,13.08893204]
[1769367200255,0.737,2845.1,2843.6,11.89902913]
[1769367200436,0.18359289,2845.4,2843.5,1.18990291]
[1769367200437,0.18359289,2845.4,2843.8,11.89902913]
[1769367200638,0.18359289,2845.4,2843.7,0.10488777]
[1769367200639,0.18359289,2845.4,2844.2,11.89902913]
[1769367201169,0.738,2845.8,2844.6,12.77786922]
[1769367201329,0.738,2845.8,2844.7,13.17681605]
[1769367201533,0.738,2845.8,2844.7,1.27778692]
[1769367201534,0.36824128,2845.7,2844.7,1.27778692]
[1769367201733,0.92154126,2845.8,2844.5,11.89902913]
[1769367201961,0.92154126,2845.8,2844.1,11.89902913]
[1769367202254,0.18454126,2845.8,2844.7,11.89902913]
[1769367202827,0.92054126,2845.8,2844.7,11.89902913]
[1769367203434,0.18454126,2845.8,2844.7,11.89902913]
[1769367203635,0.18454126,2845.8,2844.8,1.18990291]
[1769367204133,0.001,2845.8,2844.8,13.19381981]
[1769367204562,0.001,2845.8,2845.1,11.89902913]
[1769367205270,0.001,2845.8,2844.8,1.18990291]
[1769367205462,0.001,2845.8,2844.8,13.08893204]
[1769367205669,0.001,2845.8,2844.9,13.20792233]
[1769367206162,0.001,2845.6,2844.9,13.20792233]
[1769367208163,0.001,2845.8,2845.1,12.0039169]
[1769367208363,0.001,2845.8,2845.1,11.89902913]
[1769367208542,0.18351587,2846.3,2845.1,11.89902913]
[1769367208750,0.18351587,2846.3,2845.3,11.89902913]
[1769367211265,0.18351587,2846.3,2845.5,11.89902913]
[1769367211464,0.55506622,2845.5,2844.5,0.87887351]
[1769367211663,1.06184976,2846.3,2844.9,12.88266367]
[1769367211664,0.18351587,2846.3,2844.9,12.88266367]
[1769367211962,0.18351587,2846.3,2844.4,4.25165501]
[1769367211963,0.18351587,2846.3,2845.0,11.89902913]
[1769367212157,0.18351587,2846.3,2845.0,13.08893204]
[1769367212766,12.09260509,2846.2,2844.5,11.89902913]
[1769367212954,0.2335703,2846.2,2844.5,11.89902913]
[1769367213156,0.9695703,2846.2,2844.6,11.90575451]
[1769367213636,0.736,2846.1,2844.6,11.90575451]
[1769367213835,0.736,2846.1,2844.6,12.78461168]
[1769367214063,0.18351587,2846.3,2845.0,11.90575451]
[1769367215858,0.18351587,2846.3,2845.0,12.78446969]
[1769367216059,0.18351587,2846.3,2845.0,11.90575451]
[1769367216438,0.18351587,2846.3,2845.0,12.78448572]
[1769367216769,0.18351587,2846.3,2845.2,11.90575451]
[1769367216969,0.18351587,2846.3,2845.4,11.90575451]
[1769367218069,0.18351587,2846.3,2845.4,12.78433821]
[1769367218366,0.18351587,2846.3,2845.4,12.78436513]
[1769367218555,12.91530262,2847.3,2845.6,11.90575451]
[1769367218758,0.18348055,2846.8,2845.6,11.90575451]
[1769367219077,0.18348055,2846.8,2845.5,0.10488777]
[1769367219078,0.128,2847.2,2845.7,13.0140637]
[1769367219249,0.18348004,2846.8,2845.7,13.0140637]
[1769367219768,0.001,2846.1,2845.7,1.10830919]
[1769367219975,0.001,2846.1,2845.3,1.20106423]
[1769367220180,0.001,2846.1,2845.2,0.002]
[1769367220670,0.001,2846.1,2845.3,11.90575451]
[1769367221173,0.001,2846.1,2845.2,0.002]
[1769367223177,0.001,2846.1,2845.2,11.90775451]
[1769367223755,0.001,2846.1,2845.2,0.002]
[1769367225001,0.2335703,2846.4,2845.2,0.002]
[1769367225284,12.91530262,2845.6,2844.0,11.90575451]
[1769367225463,0.736,2845.5,2844.0,11.90575451]
[1769367226376,0.128,2845.9,2844.0,12.78479607]
[1769367226552,0.736,2845.8,2844.2,11.90575451]
[1769367227155,0.736,2845.7,2844.2,11.90575451]
[1769367228096,0.736,2845.7,2844.1,2.50910534]
[1769367228097,0.2335703,2845.6,2844.1,2.50910534]
[1769367228261,0.128,2846.0,2844.4,11.90575451]
[1769367228453,0.864,2846.0,2844.4,11.90575451]
[1769367228975,0.736,2846.0,2844.4,11.90575451]
[1769367229176,0.2335703,2846.4,2844.9,11.90575451]
[1769367229177,0.128,2846.4,2844.9,11.90575451]
[1769367229375,0.128,2846.5,2844.9,11.90575451]
[1769367229781,13.04330262,2846.5,2844.7,0.736]
[1769367229985,13.14887292,2846.4,2844.5,13.93721773]
[1769367230190,0.2335703,2846.4,2844.7,12.88944778]
[1769367230375,0.736,2846.3,2844.9,11.90575451]
[1769367230704,0.736,2846.3,2845.0,11.90575451]
[1769367231262,12.91530262,2846.8,2845.0,11.90575451]
[1769367231486,1.74220985,2846.7,2845.0,11.90575451]
[1769367231680,0.736,2846.6,2845.0,11.90575451]
[1769367231998,2.20174838,2846.6,2845.1,1.19057545]
[1769367232206,0.736,2846.5,2845.1,13.09632996]
[1769367232681,0.001,2846.2,2845.1,13.09632996]
[1769367233198,0.001,2846.2,2845.1,13.97502141]
[1769367233492,0.001,2846.2,2845.1,13.09632996]
[1769367233732,0.001,2846.2,2845.2,1.39750471]
[1769367234283,0.001,2846.2,2844.7,11.90775451]
[1769367234613,13.14887292,2846.1,2844.7,0.002]
[1769367235325,0.001,2846.2,2844.7,0.002]
[1769367235326,13.14887292,2845.9,2844.7,0.002]
[1769367235603,13.14887292,2845.7,2844.7,0.002]
[1769367235811,0.736,2845.6,2844.7,0.002]
[1769367236526,0.736,2845.8,2844.7,11.90775451]
[1769367237307,0.001,2846.2,2844.9,11.90575451]
[1769367237518,0.001,2846.2,2845.0,11.94090389]
[1769367237728,0.001,2846.2,2845.2,11.90575451]
[1769367239421,0.001,2846.2,2845.4,11.90575451]
[1769367239719,0.1834821,2846.9,2845.4,11.90575451]
[1769367239923,0.9194821,2846.9,2845.6,11.90575451]
[1769367240082,0.9194821,2846.9,2845.7,0.03514073]
[1769367240278,0.1834821,2846.9,2845.8,1.19408952]
[1769367240482,0.1834821,2846.9,2845.6,11.90575451]
[1769367240483,1.06163155,2846.9,2845.2,11.90575451]
[1769367240725,0.1834821,2846.9,2845.2,11.90575451]
[1769367241017,0.1834821,2846.9,2845.4,11.90575451]
[1769367241254,0.1834821,2846.9,2845.7,11.90575451]
[1769367241435,0.1834821,2846.9,2845.9,11.90575451]
[1769367241606,0.1834821,2846.9,2846.0,1.19057545]
[1769367242381,0.1834821,2846.9,2846.0,13.09632996]
[1769367242597,0.736,2847.6,2846.0,13.09632996]
[1769367242798,1.99528888,2847.6,2846.0,13.09632996]
[1769367243114,0.18346429,2847.1,2846.0,13.09632996]
[1769367243314,0.2335703,2847.5,2846.1,1.309633]
[1769367243519,0.41704369,2847.5,2846.1,1.309633]
[1769367244136,0.79837725,2847.5,2846.0,11.90575451]
[1769367244315,0.41704369,2847.5,2846.0,11.90575451]
[1769367244646,0.87799395,2847.4,2846.0,11.90575451]
[1769367245403,0.001,2846.7,2846.0,11.90575451]
[1769367245826,0.001,2846.7,2845.4,12.33250049]
[1769367246019,0.001,2846.7,2845.5,1.30685005]
[1769367246222,0.001,2846.7,2845.5,13.63935054]
[1769367246738,0.001,2846.7,2845.7,12.33250049]
[1769367246906,0.001,2846.7,2845.9,12.33250049]
[1769367247102,0.001,2846.7,2846.1,12.33250049]
[1769367247302,0.736,2847.4,2846.2,13.57975302]
[1769367247529,0.18347339,2847.5,2846.2,13.57975302]
[1769367247703,0.91947339,2847.5,2846.2,13.57975302]
[1769367247900,0.91947339,2847.5,2845.8,0.10488777]
[1769367247901,0.2335703,2847.4,2845.8,12.33250049]
[1769367248205,13.09146149,2847.4,2845.8,12.33250049]
[1769367249007,0.2335703,2847.2,2845.8,12.33250049]
[1769367251032,0.2335703,2847.2,2845.1,1.19409039]
[1769367251033,13.09146149,2847.0,2845.1,1.19409039]
[1769367251233,13.09146149,2846.8,2845.2,1.35265909]
[1769367251409,0.736,2846.7,2845.2,13.68515958]
[1769367251605,0.2335703,2846.6,2845.2,13.68515958]
[1769367251806,0.2335703,2846.6,2844.8,12.33250049]
[1769367251807,13.47279505,2846.6,2844.8,12.33250049]
[1769367252013,0.2335703,2846.4,2844.8,12.33250049]
[1769367252943,13.09146149,2846.4,2844.8,12.33250049]
[1769367253140,0.87833327,2846.3,2844.8,12.33250049]
[1769367253910,1.48249633,2846.9,2845.5,12.33250049]
[1769367254109,0.736,2846.8,2845.6,13.57623932]
[1769367254730,0.2335703,2846.4,2844.8,12.33250049]
[1769367255718,14.07844652,2846.4,2844.8,12.33250049]
[1769367256545,0.736,2846.3,2844.8,12.33250049]
[1769367257144,1.61436395,2846.3,2845.0,0.002]
[1769367258515,0.38133356,2846.9,2845.1,12.57498389]
[1769367258719,0.736,2846.8,2845.3,12.53983575]
[1769367258931,0.736,2846.8,2845.5,12.43494798]
[1769367259129,0.736,2846.8,2845.7,12.43494798]
[1769367259646,0.736,2847.0,2845.8,12.43494798]
[1769367259846,0.736,2847.0,2845.9,13.67844278]
[1769367260027,0.736,2847.0,2845.9,1.2434948]
[1769367260235,0.736,2847.0,2845.5,12.43494798]
[1769367260236,0.2335703,2846.9,2845.5,12.43494798]
[1769367260948,0.3615703,2847.1,2845.5,12.43494798]
[1769367261151,1.61417497,2846.9,2845.7,12.43494798]
[1769367261348,0.001,2847.2,2845.7,12.43494798]
[1769367261530,0.736,2847.1,2845.9,12.43494798]
[1769367261929,0.001,2847.2,2845.9,12.43494798]
[1769367262135,0.001,2847.2,2846.1,12.43494798]
[1769367262136,0.737,2847.2,2846.1,12.43494798]
[1769367263041,0.737,2847.2,2845.8,1.2434948]
[1769367263350,0.737,2847.2,2845.8,13.67844278]
[1769367263519,0.737,2847.2,2845.9,1.44144428]
[1769367263720,0.737,2847.2,2845.9,13.87639226]
[1769367264548,0.001,2847.2,2845.9,13.87639226]
[1769367264749,0.001,2847.2,2846.0,0.03513703]
[1769367264922,0.001,2847.2,2846.1,12.43494798]
[1769367265123,0.001,2847.2,2846.2,1.2434948]
[1769367265937,0.001,2847.2,2845.7,12.43494798]
[1769367266328,0.001,2847.2,2845.9,12.43494798]
[1769367266528,0.736,2847.1,2845.9,12.43494798]
[1769367266732,0.87905563,2847.2,2845.9,12.43494798]
[1769367267556,13.20012991,2847.1,2845.5,12.43494798]
[1769367267866,13.20012991,2846.8,2845.1,12.43494798]
[1769367269144,13.20012991,2846.5,2845.1,12.43494798]
[1769367269461,0.9695703,2846.4,2845.1,12.43494798]
[1769367270362,0.9695703,2846.4,2845.2,12.47009489]
[1769367270551,0.9695703,2846.4,2845.2,12.43494798]
[1769367270859,0.736,2846.5,2845.3,12.43494798]
[1769367271062,0.2335703,2846.4,2845.1,12.43494798]
[1769367271278,0.2335703,2846.4,2845.2,1.2436948]
[1769367271430,0.2335703,2846.4,2845.0,12.43694798]
[1769367272035,0.2335703,2846.4,2845.2,12.43494798]
[1769367272336,0.736,2846.3,2845.2,12.43494798]
[1769367273831,0.2335703,2846.2,2845.2,12.43494798]
[1769367274032,0.2335703,2846.2,2845.3,0.03514567]
[1769367274232,0.2335703,2846.2,2845.3,1.28215504]
[1769367274535,0.736,2846.3,2845.3,1.24700937]
[1769367276152,0.2335703,2846.6,2845.4,12.4600158]
[1769367276352,0.736,2846.5,2845.4,12.42487136]
[1769367277767,1.61429059,2846.5,2845.4,12.42487136]
[1769367277967,0.18478609,2846.4,2845.1,12.42487136]
[1769367278145,0.41835639,2846.4,2845.1,12.42487136]
[1769367278348,12.79400752,2846.3,2845.0,0.002]
[1769367278561,0.2335703,2845.9,2845.0,0.002]
[1769367279158,0.2335703,2845.7,2845.0,0.002]
[1769367280368,0.18480774,2845.6,2845.0,0.002]
[1769367281880,1.00636413,2846.3,2845.0,12.42687136]
[1769367282041,0.2335703,2846.0,2845.0,12.42687136]
[1769367282759,0.2335703,2846.0,2845.2,0.002]
[1769367283164,0.736,2845.9,2845.2,0.002]
[1769367283962,0.2335703,2846.3,2845.2,1.24840195]
[1769367284156,0.736,2845.9,2845.2,1.24840195]
[1769367284352,1.06170144,2846.6,2845.2,13.67327331]
[1769367284556,0.736,2846.5,2845.2,13.67327331]
[1769367284984,0.2335703,2846.4,2845.2,13.67327331]
[1769367285442,0.2335703,2846.4,2845.3,1.36732733]
[1769367285846,12.79400752,2846.4,2845.3,1.36732733]
[1769367286179,12.79400752,2846.4,2845.2,0.002]
[1769367286744,0.2335703,2846.2,2845.2,0.002]
[1769367289476,0.2335703,2846.3,2845.2,0.002]
[1769367291472,1.11191214,2846.3,2845.2,0.002]
[1769367292576,13.67234936,2846.3,2845.2,0.002]
[1769367292777,12.79400752,2846.1,2845.0,0.002]
[1769367292945,0.2335703,2845.8,2845.0,0.002]
[1769367293150,12.56043722,2845.9,2845.0,0.002]
[1769367293151,0.2335703,2845.6,2845.0,0.002]
[1769367293345,0.2335703,2845.6,2844.5,0.002]
[1769367293580,0.2335703,2845.6,2844.5,12.42687136]
[1769367294775,0.2335703,2845.6,2844.7,0.002]
[1769367295678,0.2335703,2845.6,2844.7,12.42687136]
[1769367297453,0.87941546,2846.1,2844.8,12.46002321]
[1769367297668,0.736,2846.0,2844.8,12.42487136]
[1769367297871,13.29643722,2846.0,2844.8,12.42487136]
[1769367298178,1.41758527,2845.9,2844.9,12.46002198]
[1769367298371,0.2335703,2845.9,2844.9,12.42487136]
[1769367298571,0.736,2845.8,2844.9,12.42487136]
[1769367298969,0.001,2846.1,2845.0,12.52975913]
[1769367299168,0.001,2846.1,2845.0,12.42487136]
[1769367299373,0.001,2846.1,2845.1,13.6673585]
[1769367300158,0.001,2846.1,2845.2,0.03514691]
[1769367300359,0.001,2846.1,2845.3,12.42487136]
[1769367303080,0.2335703,2846.5,2845.5,12.42487136]
[1769367303483,1.61423324,2846.7,2845.5,12.42487136]
[1769367303484,0.2335703,2846.6,2845.5,12.42487136]
[1769367303661,0.41834729,2846.6,2845.6,13.73409804]
[1769367304894,0.2335703,2846.7,2845.6,13.73409804]
[1769367305110,0.736,2846.8,2845.6,13.73409804]